bitfinex/quotes_SOLUSD_20250924
["timestamp","ask_amount","ask_price","bid_price","bid_amount"]
[1758710271225,1.49945097,210.85,210.83,0.68]
[1758710272499,36.84,210.86,210.84,0.68]
[1758710272500,1.49945097,210.86,210.84,0.68]
[1758710272702,1.49945097,210.86,210.81,4.74360798]
[1758710273019,1.49945097,210.85,210.8,2.0]
[1758710273229,1.49945097,210.85,210.81,0.68]
[1758710274320,4.74293302,210.84,210.81,0.68]
[1758710274518,1.49945097,210.85,210.81,0.68]
[1758710275027,1.49945097,210.86,210.81,0.68]
[1758710275324,1.49945097,210.85,210.81,0.68]
[1758710275728,1.49945097,210.85,210.82,0.68]
[1758710275909,1.49945097,210.84,210.81,0.68]
[1758710278832,1.49945097,210.85,210.82,0.68]
[1758710279011,3.80632692,210.88,210.82,0.68]
[1758710279205,1.49945097,210.86,210.82,0.68]
[1758710279525,1.49945097,210.86,210.83,0.66]
[1758710279919,1.49945097,210.86,210.81,4.74360367]
[1758710280231,1.49945097,210.86,210.82,0.66]
[1758710280435,1.49945097,210.86,210.83,4.74315799]
[1758710280644,1.49945097,210.86,210.83,5.40315799]
[1758710280810,4.68577789,210.88,210.84,0.66]
[1758710281135,4.68577789,210.88,210.85,0.66]
[1758710282014,1.49945097,210.87,210.83,17.26105297]
[1758710282210,1.49945097,210.87,210.84,0.66]
[1758710282410,1.49945097,210.87,210.85,0.66]
[1758710283343,1.49945097,210.87,210.83,0.66]
[1758710283545,1.49945097,210.87,210.84,0.66]
[1758710284840,1.49945097,210.87,210.83,0.66]
[1758710285043,1.49945097,210.87,210.83,5.40307161]
[1758710285416,1.49945097,210.87,210.84,0.66]
[1758710285619,1.49945097,210.87,210.85,0.66]
[1758710285939,4.68577789,210.88,210.85,0.66]
[1758710286547,3.18632692,210.88,210.86,0.66]
[1758710286749,1.49945097,210.9,210.87,0.66]
[1758710287525,1.49945097,210.9,210.87,5.4021375]
[1758710287725,4.68983995,210.91,210.87,5.4021375]
[1758710287925,4.68983995,210.91,210.87,4.7421375]
[1758710288142,4.68983995,210.91,210.88,0.66]
[1758710290257,36.82,210.92,210.89,0.66]
[1758710290258,38.31945097,210.92,210.89,0.66]
[1758710290435,13.59559401,210.96,210.9,0.66]
[1758710290436,1.49945097,210.94,210.9,0.66]
[1758710290752,2.34142544,210.95,210.9,0.66]
[1758710291049,5.52995176,210.95,210.9,0.66]
[1758710291550,5.52995176,210.95,210.91,4.74135887]
[1758710291850,39.16142544,210.96,210.92,0.66]
[1758710292161,2.34142544,210.97,210.92,0.66]
[1758710292365,3.18756742,210.97,210.92,0.66]
[1758710292567,36.82,210.98,210.92,3.00142544]
[1758710292843,39.16142544,211.01,210.94,2.34142544]
[1758710293044,39.16142544,211.01,210.95,0.66]
[1758710293427,2.34142544,210.99,210.95,0.66]
[1758710293629,2.34142544,210.99,210.96,0.66]
[1758710294550,2.34142544,210.99,210.93,4.74087063]
[1758710294551,2.34142544,210.97,210.91,5.40120161]
[1758710294747,2.34142544,210.96,210.91,5.40120161]
[1758710294928,0.62,210.98,210.91,5.40120161]
[1758710294929,2.96142544,210.98,210.92,0.66]
[1758710295127,2.34142544,210.98,210.92,0.66]
[1758710295850,36.82,211.01,210.93,18.934608]
[1758710296054,36.82,211.01,210.94,0.66]
[1758710296241,43.90057531,211.01,210.94,0.66]
[1758710297149,39.16142544,211.01,210.94,0.66]
[1758710297347,39.16142544,211.01,210.94,3.00142544]
[1758710297531,39.16142544,211.01,210.95,0.66]
[1758710297730,2.34142544,211.01,210.96,4.74023511]
[1758710297931,2.34142544,211.01,210.97,0.66]
[1758710298831,2.96142544,211.01,210.97,0.66]
[1758710299150,2.34142544,211.0,210.97,0.66]
[1758710300250,2.34142544,211.0,210.97,5.40000081]
[1758710300439,2.34142544,211.01,210.97,5.40000081]
[1758710301651,37.42,211.02,210.97,5.40000081]
[1758710301848,2.34142544,211.01,210.97,5.40000081]
[1758710303370,2.34142544,211.01,210.93,0.67]
[1758710303371,2.34142544,210.99,210.93,0.67]
[1758710303662,2.34142544,210.98,210.93,0.67]
[1758710303839,0.62,210.97,210.92,30.74110398]
[1758710304034,2.34142544,210.98,210.92,30.74110398]
[1758710304249,2.34142544,210.98,210.92,31.41110398]
[1758710304445,2.34142544,210.98,210.92,26.67]
[1758710304770,2.96142544,210.98,210.92,26.67]
[1758710305153,0.62,210.98,210.92,26.67]
[1758710305345,7.08147538,210.97,210.92,26.67]
[1758710305550,7.08147538,210.97,210.93,0.67]
[1758710306266,2.34142544,210.95,210.91,0.67]
[1758710306855,2.34142544,210.95,210.9,4.74149525]
[1758710307168,2.34142544,210.95,210.92,0.67]
[1758710307341,7.08200899,210.95,210.92,0.67]
[1758710308746,2.34142544,210.95,210.92,0.67]
[1758710310453,5.36027365,210.96,210.92,0.67]
[1758710310676,2.34142544,210.95,210.92,0.67]
[1758710311373,2.96142544,210.95,210.9,30.74157424]
[1758710311862,2.34142544,210.95,210.91,0.67]
[1758710313263,7.08191617,210.95,210.91,0.67]
[1758710314766,2.34142544,210.95,210.91,5.41135306]
[1758710315473,2.34142544,210.95,210.92,0.67]
[1758710316070,7.08194297,210.95,210.92,0.67]
[1758710317976,2.34142544,210.94,210.92,0.67]
[1758710319775,2.96142544,210.93,210.87,0.67]
[1758710320081,2.34142544,210.9,210.87,0.67]
[1758710320260,2.34142544,210.9,210.88,0.67]
[1758710321266,2.34142544,210.9,210.86,0.67]
[1758710321463,2.34142544,210.89,210.86,0.67]
[1758710322370,2.34142544,210.88,210.86,0.67]
[1758710323787,2.34142544,210.88,210.85,4.74262015]
[1758710323988,2.34142544,210.88,210.85,5.41262015]
[1758710324462,2.34142544,210.88,210.85,0.67]
[1758710324787,2.34142544,210.86,210.83,0.67]
[1758710325189,2.34142544,210.86,210.84,0.67]
[1758710325681,2.34142544,210.86,210.82,5.41318213]
[1758710326066,2.34142544,210.86,210.83,0.67]
[1758710327389,2.34142544,210.86,210.83,5.41313719]
[1758710327582,4.74227123,210.87,210.83,5.41313719]
[1758710327790,2.34142544,210.86,210.84,0.67]
[1758710329366,2.34142544,210.86,210.82,0.67]
[1758710329579,2.34142544,210.86,210.83,0.67]
[1758710330703,2.34142544,210.86,210.84,0.72]
[1758710333092,2.34142544,210.88,210.85,0.72]
[1758710333280,2.34142544,210.88,210.86,0.72]
[1758710334616,2.34142544,210.88,210.87,0.72]
[1758710334772,2.34142544,210.88,210.83,11.85785789]
[1758710334972,2.34142544,210.87,210.84,0.72]
[1758710335295,2.34142544,210.87,210.85,4.74270808]
[1758710335498,2.34142544,210.87,210.85,0.72]
[1758710339896,2.34142544,210.88,210.85,5.46264594]
[1758710340111,2.34142544,210.89,210.86,0.71]
[1758710340606,2.34142544,210.89,210.87,0.71]
[1758710340982,2.34142544,210.89,210.85,5.45264594]
[1758710341183,2.34142544,210.9,210.86,0.71]
[1758710341380,2.34142544,210.93,210.86,3.05142544]
[1758710341593,2.34142544,210.93,210.87,17.30790391]
[1758710341780,2.34142544,210.92,210.88,0.71]
[1758710342207,36.78,210.94,210.88,0.71]
[1758710342416,2.34142544,210.95,210.88,3.05142544]
[1758710342592,2.34142544,210.96,210.89,3.05142544]
[1758710342912,2.34142544,210.96,210.9,0.71]
[1758710343619,2.34142544,210.96,210.91,4.74135887]
[1758710343828,36.78,211.0,210.92,3.05142544]
[1758710344113,36.78,211.0,210.93,0.71]
[1758710344114,2.34142544,210.99,210.93,0.71]
[1758710344309,42.13936719,211.0,210.93,0.71]
[1758710344504,2.34142544,210.99,210.93,0.71]
[1758710345114,42.13936719,211.0,210.94,4.74068455]
[1758710345293,2.34142544,210.98,210.93,0.71]
[1758710345610,2.34142544,210.98,210.94,0.71]
[1758710346699,2.34142544,210.99,210.94,5.450663]
[1758710346901,2.96142544,210.99,210.94,5.450663]
[1758710347408,2.96142544,210.99,210.94,4.740663]
[1758710347717,2.96142544,210.99,210.95,0.71]
[1758710348090,2.34142544,210.96,210.91,14.96076598]
[1758710348300,2.96142544,210.96,210.91,19.70203585]
[1758710348498,2.96142544,210.96,210.91,5.45126987]
[1758710348795,7.70166664,210.96,210.91,5.45126987]
[1758710349009,7.08166664,210.96,210.92,0.71]
[1758710349603,2.34142544,210.96,210.92,0.71]
[1758710350314,2.34142544,210.96,210.93,0.71]
[1758710350514,2.34142544,210.96,210.91,4.74126987]
[1758710350731,2.34142544,210.96,210.92,5.45110021]
[1758710352316,2.34142544,210.96,210.87,62.76]
[1758710352317,2.34142544,210.98,210.93,0.71]
[1758710352521,37.4,211.0,210.93,0.71]
[1758710352522,2.34142544,210.97,210.93,0.71]
[1758710352714,1.49828143,210.96,210.91,10.19137399]
[1758710353015,1.49828143,210.96,210.92,0.71]
[1758710353216,2.11828143,210.97,210.92,0.71]
[1758710354105,1.49828143,210.97,210.93,0.71]
[1758710355318,1.49828143,210.97,210.93,5.45085241]
[1758710358920,6.23830817,210.97,210.93,0.71]
[1758710360125,4.74002674,210.97,210.94,0.71]
[1758710360324,6.23830817,210.97,210.91,4.74130403]
[1758710360619,6.23830817,210.97,210.92,0.71]
[1758710360798,6.23830817,210.97,210.93,0.71]
[1758710365532,1.49828143,210.97,210.93,0.71]
[1758710365926,6.23834846,210.97,210.93,0.71]
[1758710366425,6.85834846,210.97,210.93,0.71]
[1758710367027,6.85834846,210.97,210.89,18.09271022]
[1758710367028,1.49828143,210.94,210.89,6.94830817]
[1758710367231,6.2391598,210.94,210.89,0.71]
[1758710367429,6.8591598,210.94,210.88,30.7420159]
[1758710367925,6.8591598,210.94,210.89,0.71]
[1758710368228,1.49828143,210.93,210.89,0.71]
[1758710368601,6.8592066,210.93,210.89,0.71]
[1758710368807,6.8592066,210.93,210.88,30.7420159]
[1758710369107,6.8592066,210.93,210.88,31.4520159]
[1758710369911,6.8592066,210.93,210.89,0.71]
[1758710373400,6.8592066,210.93,210.86,4.74113072]
[1758710373401,1.49828143,210.9,210.86,4.74113072]
[1758710373626,1.49828143,210.89,210.86,4.74113072]
[1758710373830,1.49828143,210.89,210.86,5.45113072]
[1758710374030,1.49828143,210.9,210.86,5.45113072]
[1758710374328,6.23988845,210.9,210.86,0.71]
[1758710375025,1.49828143,210.9,210.86,5.452468]
[1758710375230,1.49828143,210.89,210.86,5.452468]
[1758710375734,1.49828143,210.9,210.87,0.71]
[1758710375932,5.36138744,210.91,210.87,0.71]
[1758710376132,1.49828143,210.9,210.84,4.74293302]
[1758710376317,1.49828143,210.9,210.85,0.71]
[1758710376512,5.36138744,210.91,210.86,0.71]
[1758710376707,1.49828143,210.9,210.86,0.71]
[1758710377915,1.49828143,210.9,210.87,0.71]
[1758710378314,0.62,210.92,210.84,4.74293302]
[1758710378315,1.49828143,210.92,210.88,0.71]
[1758710378521,1.49828143,210.92,210.89,0.71]
[1758710379741,1.49828143,210.91,210.85,4.74270808]
[1758710379913,1.49828143,210.88,210.85,5.45270808]
[1758710380415,1.49828143,210.88,210.85,0.71]
[1758710380635,1.49828143,210.86,210.82,4.7418124]
[1758710380813,1.49828143,210.86,210.81,36.74]
[1758710381011,1.49828143,210.86,210.83,0.71]
[1758710384124,1.49828143,210.86,210.83,5.45314464]
[1758710384434,1.49828143,210.86,210.84,0.71]
[1758710385436,1.49828143,210.88,210.85,0.71]
[1758710385939,1.49828143,210.89,210.86,0.71]
[1758710386127,1.49828143,210.89,210.87,0.71]
[1758710386512,1.49828143,210.91,210.88,0.71]
[1758710386720,3.18301129,210.93,210.89,0.71]
[1758710386917,1.49828143,210.92,210.9,0.71]
[1758710387121,1.49828143,210.91,210.9,0.71]
[1758710387321,1.49828143,210.91,210.84,54.81854702]
[1758710387322,1.49828143,210.91,210.88,0.71]
[1758710387523,1.49828143,210.91,210.89,0.71]
[1758710387934,1.49828143,210.91,210.89,5.45179469]
[1758710388141,1.49828143,210.92,210.89,5.45179469]
[1758710388344,1.49828143,210.92,210.89,0.71]
[1758710388543,1.49828143,210.91,210.89,0.71]
[1758710388916,1.49828143,210.9,210.87,5.4522046]
[1758710389220,1.49828143,210.9,210.88,0.71]
[1758710389727,1.49828143,210.9,210.87,4.7422046]
[1758710389927,1.49828143,210.91,210.88,0.71]
[1758710390126,1.49828143,210.91,210.89,0.71]
[1758710390324,36.74,210.95,210.9,0.71]
[1758710390526,1.49828143,210.92,210.9,0.71]
[1758710390738,2.11828143,210.91,210.87,4.7422046]
[1758710391036,1.49828143,210.91,210.87,5.4122046]
[1758710391238,1.49828143,210.91,210.88,0.67]
[1758710391421,1.49828143,210.91,210.89,0.67]
[1758710391617,1.49828143,210.91,210.86,11.85620791]
[1758710391946,1.49828143,210.93,210.9,0.67]
[1758710392816,4.68121452,210.94,210.91,0.67]
[1758710393022,1.49828143,210.94,210.92,0.67]
[1758710393252,36.74,210.95,210.93,0.67]
[1758710393253,38.23828143,210.95,210.93,0.67]
[1758710393746,1.49828143,210.95,210.94,0.67]
[1758710393920,1.49828143,210.96,210.94,0.67]
[1758710394242,1.49828143,210.95,210.92,0.67]
[1758710395420,1.49828143,210.95,210.93,0.67]
[1758710396040,2.11828143,210.94,210.89,10.10141303]
[1758710396237,2.11828143,210.94,210.89,10.77141303]
[1758710396545,1.49828143,210.94,210.9,0.67]
[1758710396729,1.49828143,210.94,210.91,0.67]
[1758710398828,1.49828143,210.93,210.89,5.35978576]
[1758710399055,1.49828143,210.92,210.88,5.412021]
[1758710399246,1.49828143,210.92,210.88,31.402021]
[1758710399425,1.49828143,210.92,210.89,0.66]
[1758710399632,1.49828143,210.92,210.88,26.0]
[1758710399937,1.49828143,210.91,210.88,0.66]
[1758710400452,1.49828143,210.9,210.86,0.66]
[1758710400953,6.23993966,210.9,210.86,0.66]
[1758710401154,1.49828143,210.89,210.86,0.66]
[1758710401446,1.49828143,210.89,210.84,0.66]
[1758710401650,1.49828143,210.89,210.85,0.66]
[1758710401953,1.49828143,210.89,210.83,4.74315799]
[1758710402160,1.49828143,210.89,210.86,0.66]
[1758710402335,6.24013255,210.89,210.86,0.66]
[1758710404132,1.49828143,210.87,210.82,0.66]
[1758710404334,1.49828143,210.86,210.82,0.66]
[1758710405352,6.24081908,210.86,210.83,0.66]
[1758710406935,6.24081908,210.86,210.8,9.57030243]
[1758710406936,2.11828143,210.85,210.8,9.57030243]
[1758710407143,2.11828143,210.85,210.8,2.66]
[1758710407337,1.49828143,210.85,210.81,0.66]
[1758710407539,6.24081908,210.86,210.81,0.66]
[1758710407750,6.24081908,210.86,210.8,6.74382219]
[1758710407948,1.49828143,210.85,210.82,0.66]
[1758710408936,6.24103723,210.85,210.82,0.66]
[1758710410440,1.49828143,210.84,210.82,0.66]
[1758710411058,1.49828143,210.84,210.81,0.66]
[1758710411247,1.49828143,210.84,210.82,0.66]
[1758710411634,1.49828143,210.84,210.8,6.74382279]
[1758710411837,1.49828143,210.84,210.81,0.66]
[1758710412038,1.49828143,210.84,210.82,0.66]
[1758710412659,2.34369678,210.84,210.82,0.66]
[1758710413453,2.34369678,210.85,210.83,0.66]
[1758710413646,2.34369678,210.85,210.81,4.74356948]
[1758710413848,2.34369678,210.87,210.84,0.66]
[1758710414144,2.34369678,210.87,210.85,0.66]
[1758710414554,49.17385005,210.91,210.83,0.66]
[1758710414555,2.34369678,210.86,210.83,0.66]
[1758710414867,2.34369678,210.86,210.84,0.66]
[1758710415166,36.7,210.91,210.84,0.66]
[1758710415463,2.34369678,210.89,210.84,0.66]
[1758710415640,2.34369678,210.91,210.84,29.00369678]
[1758710415845,2.34369678,210.91,210.85,0.66]
[1758710416260,3.80315817,210.94,210.85,3.00369678]
[1758710416261,2.34369678,210.92,210.85,3.00369678]
[1758710416460,2.34369678,210.92,210.87,4.74225826]
[1758710416461,7.08483855,210.92,210.87,4.74225826]
[1758710416665,7.08483855,210.92,210.88,0.66]
[1758710417245,2.34369678,210.91,210.88,0.66]
[1758710418065,7.0850936,210.91,210.88,0.66]
[1758710418245,2.34369678,210.9,210.86,0.66]
[1758710418446,2.34369678,210.9,210.87,0.66]
[1758710419353,2.34369678,210.88,210.84,4.74139682]
[1758710419566,2.34369678,210.88,210.84,0.66]
[1758710419750,2.34369678,210.88,210.83,4.74297607]
[1758710419950,2.34369678,210.88,210.85,0.66]
[1758710421570,2.34369678,210.87,210.82,31.45139682]
[1758710421768,2.96369678,210.86,210.8,2.71]
[1758710421967,2.34369678,210.84,210.8,2.71]
[1758710422472,2.34369678,210.84,210.8,7.45381436]
[1758710422841,2.34369678,210.84,210.81,0.71]
[1758710423271,7.08669831,210.84,210.8,2.0]
[1758710423478,5.36300153,210.84,210.8,2.0]
[1758710423766,2.34369678,210.82,210.8,2.0]
[1758710424569,7.08688268,210.83,210.8,2.0]
[1758710424774,2.34369678,210.81,210.8,2.0]
[1758710425150,2.96369678,210.81,210.8,2.0]
[1758710425550,2.34369678,210.81,210.8,2.0]
[1758710426158,5.3631859,210.83,210.8,2.0]
[1758710426358,2.34369678,210.81,210.8,2.0]
[1758710426973,7.70730476,210.81,210.8,2.0]
[1758710427278,5.36360798,210.81,210.8,2.0]
[1758710427457,7.70730476,210.81,210.8,2.0]
[1758710427648,7.08730476,210.81,210.8,2.0]
[1758710430252,7.70730476,210.81,210.8,2.0]
[1758710430458,7.08730476,210.81,210.8,2.0]
[1758710431178,7.70730476,210.81,210.8,2.0]
[1758710431358,7.08730476,210.81,210.8,2.0]
[1758710432579,2.34369678,210.81,210.8,2.0]
[1758710432880,7.08730476,210.81,210.8,2.0]
[1758710437175,0.62,210.87,210.8,2.71]
[1758710437474,2.34369678,210.86,210.81,0.71]
[1758710437854,2.34369678,210.85,210.81,0.71]
[1758710438670,2.34369678,210.85,210.81,5.45358285]
[1758710438870,2.34369678,210.85,210.82,0.71]
[1758710439184,2.34369678,210.85,210.83,0.71]
[1758710439684,7.08643082,210.85,210.81,0.71]
[1758710439890,7.08643082,210.85,210.82,0.71]
[1758710440076,2.34369678,210.85,210.83,0.71]
[1758710440974,2.34369678,210.85,210.81,0.71]
[1758710441176,11.85452131,210.89,210.8,6.74381868]
[1758710441177,0.62,210.94,210.82,3.05369678]
[1758710441366,2.34369678,210.89,210.83,26.71]
[1758710441566,2.34369678,210.91,210.84,3.05369678]
[1758710441765,36.7,210.93,210.83,26.0]
[1758710441766,39.04369678,210.93,210.86,2.34369678]
[1758710441972,39.04369678,210.93,210.87,0.71]
[1758710442176,2.34369678,210.91,210.87,0.71]
[1758710442377,2.34369678,210.9,210.87,0.71]
[1758710442566,2.34369678,210.9,210.84,0.14216157]
[1758710442771,2.34369678,210.9,210.85,0.71]
[1758710442966,2.34369678,210.9,210.86,4.74248316]
[1758710443262,2.34369678,210.9,210.87,0.71]
[1758710443669,2.34369678,210.9,210.88,0.71]
[1758710444295,2.34369678,210.9,210.86,4.74248316]
[1758710444500,2.34369678,210.91,210.87,0.71]
[1758710445490,2.34369678,210.91,210.86,4.74248316]
[1758710445762,2.34369678,210.91,210.87,0.71]
[1758710446092,7.08507889,210.91,210.88,0.71]
[1758710447293,2.34369678,210.91,210.88,0.71]
[1758710449091,7.085057,210.91,210.88,0.71]
[1758710449393,2.34369678,210.9,210.88,0.71]
[1758710450498,2.34369678,210.9,210.85,4.74270808]
[1758710450697,2.34369678,210.9,210.86,0.68]
[1758710450892,2.34369678,210.9,210.87,0.68]
[1758710452492,2.34369678,210.9,210.85,4.74270808]
[1758710452695,2.34369678,210.9,210.88,0.68]
[1758710456309,2.34369678,210.9,210.85,4.74270808]
[1758710456486,2.34369678,210.89,210.86,0.68]
[1758710456690,2.34369678,210.88,210.84,0.68]
[1758710457701,2.34369678,210.88,210.84,5.42292649]
[1758710458008,2.34369678,210.88,210.85,0.68]
[1758710458205,2.34369678,210.88,210.86,0.68]
[1758710460875,2.34369678,210.88,210.81,100.88089192]
[1758710460876,2.34369678,210.87,210.83,0.72]
[1758710461280,2.34369678,210.87,210.84,0.72]
[1758710462200,2.34369678,210.87,210.81,0.14216157]
[1758710462382,2.96369678,210.87,210.81,0.72]
[1758710463084,7.70611183,210.87,210.81,5.46344811]
[1758710463327,7.70611183,210.87,210.82,0.72]
[1758710464185,2.34369678,210.85,210.82,0.72]
[1758710464384,2.34369678,210.83,210.8,2.0]
[1758710464689,2.34369678,210.81,210.8,2.0]
[1758710466187,2.96369678,210.81,210.8,2.0]
[1758710466387,7.70730476,210.81,210.8,2.0]
[1758710468120,2.34369678,210.81,210.8,2.0]
[1758710468627,7.08730476,210.81,210.8,2.0]
[1758710469117,2.34369678,210.81,210.8,2.0]
[1758710471128,11.85456409,210.89,210.8,2.72]
[1758710471326,2.34369678,210.81,210.8,2.72]
[1758710472509,2.34369678,210.81,210.8,2.0]
[1758710473609,7.08730476,210.81,210.8,2.0]
[1758710474708,6.24429919,210.81,210.8,2.0]
[1758710475530,6.86429919,210.81,210.8,2.0]
[1758710476629,20.4598932,210.81,210.8,2.0]
[1758710479532,1.50069121,210.81,210.8,2.0]
[1758710480739,1.50069121,210.81,210.8,2.68]
[1758710481046,1.50069121,210.81,210.8,2.0]
[1758710481224,4.74350396,210.82,210.8,2.0]
[1758710481225,1.50069121,210.82,210.8,2.0]
[1758710481733,1.50069121,210.82,210.81,0.68]
[1758710482231,1.50069121,210.83,210.81,0.68]
[1758710482438,1.50069121,210.83,210.82,0.68]
[1758710486040,6.2438492,210.83,210.8,2.68]
[1758710486215,6.2438492,210.83,210.8,2.0]
[1758710486216,4.74315799,210.83,210.8,2.0]
[1758710486533,4.74315799,210.83,210.8,2.68]
[1758710486534,1.50069121,210.82,210.8,2.68]
[1758710488116,1.50069121,210.81,210.8,2.68]
[1758710489243,1.50069121,210.82,210.8,2.68]
[1758710490743,4.74318132,210.83,210.8,2.0]
[1758710490951,1.50069121,210.82,210.81,0.68]
[1758710492049,1.50069121,210.82,210.8,2.0]
[1758710492343,1.50069121,210.81,210.8,2.68]
[1758710493841,36.68,210.84,210.8,2.68]
[1758710494044,1.50069121,210.86,210.81,0.68]
[1758710494228,1.50069121,210.89,210.81,2.18069121]
[1758710494425,26.0,210.91,210.82,2.18069121]
[1758710494426,1.50069121,210.9,210.82,2.18069121]
[1758710494643,1.50069121,210.9,210.83,0.68]
[1758710495038,36.66,210.91,210.84,1.50069121]
[1758710495242,1.50069121,210.92,210.85,0.68]
[1758710495634,6.24161772,210.93,210.85,8.92437234]
[1758710495832,6.24161772,210.93,210.86,0.68]
[1758710496033,1.50069121,210.92,210.87,4.74225826]
[1758710496234,1.50069121,210.92,210.88,0.68]
[1758710496524,1.50069121,210.91,210.86,18.99864549]
[1758710496744,1.50069121,210.91,210.87,0.68]
[1758710497835,1.50069121,210.91,210.87,5.42207775]
[1758710498353,1.50069121,210.91,210.88,0.68]
[1758710498553,6.24211976,210.91,210.86,14.25618362]
[1758710498725,1.50069121,210.91,210.87,0.68]
[1758710500047,1.50069121,210.91,210.87,5.42215623]
[1758710500228,1.50069121,210.91,210.88,0.68]
[1758710500866,1.50069121,210.91,210.89,0.68]
[1758710501250,6.24186619,210.92,210.89,0.68]
[1758710501949,6.24186619,210.92,210.86,4.74117498]
[1758710502252,6.24186619,210.92,210.87,0.68]
[1758710503048,6.24186619,210.92,210.87,5.42224603]
[1758710503247,6.24186619,210.92,210.88,0.68]
[1758710503554,6.24186619,210.92,210.89,0.68]
[1758710503726,1.50069121,210.92,210.89,0.68]
[1758710506853,38.16069121,210.94,210.9,0.68]
[1758710507035,6.24128974,210.95,210.9,0.68]
[1758710508056,6.24128974,210.95,210.9,5.42155855]
[1758710508374,1.50069121,210.94,210.91,0.68]
[1758710510432,6.24140009,210.94,210.91,0.68]
[1758710513763,1.50069121,210.94,210.91,0.68]
[1758710514644,1.50069121,210.95,210.92,0.65]
[1758710514945,1.50069121,210.95,210.93,0.65]
[1758710515266,1.50069121,210.95,210.91,0.65]
[1758710515444,4.74068455,210.94,210.91,0.65]
[1758710515966,4.74068455,210.94,210.9,0.65]
[1758710517065,4.74068455,210.94,210.91,0.65]
[1758710517656,4.74068455,210.94,210.89,4.7417844]
[1758710517862,4.74068455,210.94,210.91,0.65]
[1758710518573,2.12069121,210.93,210.88,14.25415153]
[1758710518744,4.74113407,210.92,210.86,0.65]
[1758710518942,5.36113407,210.92,210.86,0.65]
[1758710519843,5.36113407,210.92,210.86,5.39227675]
[1758710520045,5.36113407,210.92,210.87,0.67]
[1758710520268,5.36113407,210.92,210.88,0.67]
[1758710525967,0.62,210.92,210.88,5.41200158]
[1758710526168,0.62,210.94,210.89,0.67]
[1758710526373,0.62,210.94,210.88,4.74200158]
[1758710526374,1.50069121,210.93,210.9,0.67]
[1758710526673,9.41030718,210.96,210.9,0.67]
[1758710526876,6.24113145,210.96,210.9,0.67]
[1758710527062,6.86113145,210.96,210.9,0.67]
[1758710527262,1.50069121,210.95,210.9,0.67]
[1758710527460,1.50069121,210.95,210.91,0.67]
[1758710527671,1.50069121,210.95,210.91,5.41130715]
[1758710527969,2.12069121,210.96,210.92,0.67]
[1758710528472,1.50069121,210.96,210.93,0.67]
[1758710528771,37.24,210.98,210.91,16.59470433]
[1758710528977,37.24,210.98,210.94,0.67]
[1758710529271,38.74069121,210.98,210.94,0.67]
[1758710529573,43.48047917,210.98,210.94,0.67]
[1758710530565,1.50069121,210.97,210.94,0.67]
[1758710531272,1.50069121,210.95,210.89,4.74130715]
[1758710531473,1.50069121,210.95,210.91,0.67]
[1758710531657,1.50069121,210.95,210.92,0.67]
[1758710532558,1.50069121,210.95,210.9,4.74145549]
[1758710532881,1.50069121,210.95,210.91,0.67]
[1758710533073,6.24110345,210.96,210.91,0.67]
[1758710533252,6.24110345,210.96,210.92,0.67]
[1758710533452,6.86110345,210.96,210.9,5.41145549]
[1758710533981,6.86110345,210.96,210.9,0.67]
[1758710534159,1.50069121,210.94,210.9,0.67]
[1758710534363,5.36041224,210.96,210.88,14.25279711]
[1758710534364,1.50069121,210.92,210.88,14.25279711]
[1758710534586,2.96244048,210.91,210.85,0.67]
[1758710535676,4.74158368,210.9,210.85,5.41269812]
[1758710535865,4.74158368,210.9,210.86,0.67]
[1758710536369,4.74158368,210.9,210.85,4.74269812]
[1758710536576,4.74158368,210.9,210.86,0.67]
[1758710536783,4.74158368,210.9,210.87,0.67]
[1758710537067,2.96244048,210.91,210.87,0.67]
[1758710537068,7.70384462,210.91,210.87,0.67]
[1758710541796,2.34244048,210.91,210.87,5.41221731]